bitfinex/quotes_SOLUSD_20241209
["timestamp","ask_amount","ask_price","bid_price","bid_amount"]
[1733783690226,0.86253427,217.43,217.37,36.33778242]
[1733783690613,0.86250126,217.45,217.38,23.776884]
[1733783690846,0.86250126,217.45,217.39,36.58876242]
[1733783691058,37.2001314,217.52,217.43,36.33778242]
[1733783691352,11.5283,217.62,217.39,0.25098]
[1733783691353,0.86214263,217.56,217.51,36.33778242]
[1733783691655,0.86187919,217.59,217.52,23.776884]
[1733783691852,36.33778242,217.62,217.54,23.776884]
[1733783692147,0.86173915,217.61,217.55,36.33778242]
[1733783692352,36.33778242,217.62,217.53,36.33778242]
[1733783692527,27.5548,217.68,217.47,36.33778242]
[1733783692528,0.86179245,217.61,217.55,36.33778242]
[1733783692734,36.33778242,217.62,217.54,23.776884]
[1733783692929,0.86181319,217.61,217.53,36.33778242]
[1733783693131,36.33778242,217.56,217.32,22.4921]
[1733783693328,0.86224534,217.55,217.46,36.33778242]
[1733783693533,36.33778242,217.54,217.44,36.33778242]
[1733783693723,36.33778242,217.5,217.4,36.33778242]
[1733783693941,36.33778242,217.48,217.4,36.33778242]
[1733783694155,0.86236563,217.47,217.4,36.33778242]
[1733783694541,36.33778242,217.44,217.36,36.33778242]
[1733783694729,10.0,217.5,217.36,36.33778242]
[1733783694730,0.86250323,217.43,217.36,36.33778242]
[1733783695129,0.86250323,217.43,217.34,36.33778242]
[1733783696341,36.33778242,217.42,217.34,36.33778242]
[1733783696533,1.1495,217.48,217.34,36.33778242]
[1733783696534,0.86256496,217.41,217.34,36.33778242]
[1733783696731,0.86256937,217.43,217.34,36.33778242]
[1733783697447,0.86256126,217.43,217.37,36.33778242]
[1733783697667,0.86244725,217.46,217.37,36.33778242]
[1733783697846,0.86244725,217.46,217.35,0.12549]
[1733783697847,37.20022967,217.51,217.42,36.33778242]
[1733783698226,37.20022967,217.51,217.35,0.12549]
[1733783698227,36.33778242,217.49,217.4,36.33778242]
[1733783698427,0.8623776,217.48,217.4,36.33778242]
[1733783698624,36.33778242,217.51,217.43,23.902374]
[1733783698834,36.33778242,217.51,217.42,36.33778242]
[1733783698835,0.86217552,217.5,217.42,36.33778242]
[1733783699062,36.33778242,217.49,217.41,23.776884]
[1733783699360,0.86234872,217.48,217.41,23.776884]
[1733783700230,0.86231236,217.5,217.41,23.776884]
[1733783700438,36.33778242,217.47,217.38,36.33778242]
[1733783700764,36.33778242,217.41,217.24,12.4921]
[1733783700939,36.33778242,217.35,217.25,36.33778242]
[1733783701138,36.33778242,217.31,217.21,36.33778242]
[1733783701338,0.86317297,217.3,217.21,36.33778242]
[1733783701542,36.33778242,217.27,217.17,36.33778242]
[1733783701866,20.0,217.32,217.15,36.33778242]
[1733783701867,36.33778242,217.23,217.15,36.33778242]
[1733783702066,0.86332358,217.26,217.05,11.9513]
[1733783702067,0.86342853,217.22,217.17,36.33778242]
[1733783702360,0.86342853,217.22,217.05,11.9513]
[1733783702361,0.86331168,217.28,217.21,36.33778242]
[1733783703052,0.86331168,217.28,217.19,36.33778242]
[1733783703258,36.33778242,217.28,217.19,36.33778242]
[1733783703448,36.33778242,217.26,217.17,36.33778242]
[1733783703641,36.33778242,217.24,217.15,36.33778242]
[1733783703839,0.86330782,217.23,217.15,36.33778242]
[1733783704049,36.33778242,217.22,217.11,36.33778242]
[1733783704249,0.86353628,217.21,217.11,36.33778242]
[1733783704447,36.33778242,217.2,217.11,36.33778242]
[1733783704667,0.86353254,217.19,217.11,36.33778242]
[1733783705365,36.33778242,217.22,217.13,36.33778242]
[1733783705563,36.33778242,217.2,217.11,36.33778242]
[1733783705773,0.86361163,217.19,217.11,36.33778242]
[1733783705937,0.86361163,217.19,217.09,36.33778242]
[1733783706135,36.33778242,217.16,217.07,36.33778242]
[1733783706338,36.33778242,217.14,217.06,0.5604788]
[1733783706559,36.33778242,217.11,217.06,0.5604788]
[1733783706756,0.86390682,217.1,217.06,0.5604788]
[1733783707469,36.33778242,217.09,217.06,0.5604788]
[1733783707768,0.86401988,217.13,217.06,0.5604788]
[1733783707973,12.3223,217.21,217.06,0.5604788]
[1733783707974,0.86395223,217.12,217.06,0.5604788]
[1733783708277,36.33778242,217.14,217.06,0.5604788]
[1733783708454,0.86373873,217.13,217.06,0.5604788]
[1733783709041,36.33778242,217.12,217.06,0.5604788]
[1733783709246,0.86382686,217.11,217.06,0.5604788]
[1733783709658,36.33778242,217.1,217.06,0.5604788]
[1733783709942,36.33778242,217.08,217.06,0.5604788]
[1733783710250,0.86419812,217.07,217.06,0.5604788]
[1733783710856,10.0,217.06,216.9,36.33778242]
[1733783711050,36.33778242,216.97,216.88,36.33778242]
[1733783711263,0.8645047,216.96,216.88,36.33778242]
[1733783712752,36.33778242,216.94,216.84,36.89826122]
[1733783712968,36.33778242,216.92,216.84,0.5604788]
[1733783713268,36.33778242,216.9,216.84,0.5604788]
[1733783713450,0.86472841,216.89,216.84,0.5604788]
[1733783713649,20.0,216.85,216.84,0.5604788]
[1733783713863,20.0,216.85,216.63,0.5604788]
[1733783713864,20.0,216.83,216.68,36.33778242]
[1733783714177,36.33778242,216.71,216.63,0.5604788]
[1733783714386,0.8654583,216.7,216.63,0.5604788]
[1733783714555,36.33778242,216.75,216.67,36.33778242]
[1733783714877,0.86527788,216.74,216.67,36.33778242]
[1733783715368,36.33778242,216.68,216.63,0.5604788]
[1733783715670,0.86550685,216.67,216.63,0.5604788]
[1733783715850,0.8654895,216.69,216.63,0.5604788]
[1733783716055,36.33778242,216.64,216.63,0.5604788]
[1733783716255,36.33778242,216.64,216.41,10.5604788]
[1733783716256,20.0,216.61,216.41,0.5604788]
[1733783716456,20.0,216.59,216.47,36.61996387]
[1733783716652,36.61996387,216.54,216.41,0.5604788]
[1733783716841,36.61996387,216.54,216.44,36.61996387]
[1733783717037,20.0,216.67,216.42,36.61996387]
[1733783717038,36.61996387,216.52,216.42,36.61996387]
[1733783717264,0.86629993,216.51,216.44,36.61996387]
[1733783717472,0.86611029,216.53,216.46,36.61996387]
[1733783717841,36.61996387,216.62,216.51,36.61996387]
[1733783718042,36.61996387,216.62,216.53,36.61996387]
[1733783718246,36.61996387,216.68,216.58,0.12549]
[1733783718457,0.8655213,216.67,216.6,0.12549]
[1733783718670,36.61996387,216.72,216.64,0.12549]
[1733783718851,0.86530397,216.71,216.64,0.12549]
[1733783719050,36.61996387,216.68,216.57,0.12549]
[1733783719251,36.61996387,216.66,216.59,0.12549]
[1733783719479,0.86562944,216.65,216.59,0.12549]
[1733783719849,0.86562944,216.65,216.59,0.25098]
[1733783720270,36.61996387,216.64,216.53,36.61996387]
[1733783720584,36.61996387,216.62,216.53,36.61996387]
[1733783720881,36.61996387,216.54,216.44,36.61996387]
[1733783721047,36.61996387,216.52,216.43,0.12549]
[1733783721374,0.86623787,216.51,216.44,36.61996387]
[1733783721550,36.63143252,216.54,216.45,36.63143252]
[1733783721749,0.86606352,216.59,216.52,36.63143252]
[1733783721948,36.63143252,216.64,216.54,36.63143252]
[1733783722256,36.63143252,216.56,216.45,36.63143252]
[1733783722459,36.63143252,216.5,216.41,0.5604788]
[1733783722680,0.86635575,216.49,216.41,0.5604788]
[1733783722901,36.63143252,216.42,216.41,0.5604788]
[1733783723388,37.49832941,216.42,216.41,0.5604788]
[1733783724454,36.63143252,216.42,216.41,0.5604788]
[1733783724974,36.63143252,216.3,216.2,37.19191132]
[1733783725174,0.86698396,216.29,216.22,36.63143252]
[1733783725380,0.86702574,216.31,216.22,36.63143252]
[1733783725573,36.63143252,216.34,216.24,36.63143252]
[1733783725780,0.8668589,216.33,216.25,0.12549]
[1733783726000,0.8668589,216.33,216.25,0.265802]
[1733783726297,36.63143252,216.32,216.25,0.265802]
[1733783726612,0.86695882,216.31,216.25,0.265802]
[1733783726787,36.63143252,216.35,216.25,36.89723452]
[1733783726994,36.63143252,216.37,216.29,36.63143252]
[1733783727152,0.86672704,216.46,216.28,20.0]
[1733783727153,36.63143252,216.39,216.28,20.0]
[1733783727357,36.63143252,216.39,216.25,11.826202]
[1733783727358,36.63143252,216.35,216.25,0.265802]
[1733783727581,36.63143252,216.33,216.25,0.265802]
[1733783727884,1.1548,216.47,216.25,0.265802]
[1733783727885,36.63143252,216.29,216.25,0.265802]
[1733783728186,0.86719031,216.28,216.25,0.265802]
[1733783728483,36.63143252,216.27,216.25,0.265802]
[1733783728695,0.86727008,216.26,216.25,0.265802]
[1733783729588,0.86727008,216.26,216.25,0.391292]
[1733783729788,36.63143252,216.29,216.25,0.265802]
[1733783729965,0.86711984,216.28,216.25,0.265802]
[1733783730166,36.63143252,216.31,216.25,0.265802]
[1733783730364,36.63143252,216.27,216.25,0.265802]
[1733783730694,0.75926807,216.26,216.25,0.265802]
[1733783730989,30.75926807,216.26,216.25,0.265802]
[1733783731693,30.75926807,216.26,216.25,0.391292]
[1733783732587,30.0,216.26,216.25,0.391292]
[1733783733299,30.0,216.26,216.25,0.516782]
[1733783733590,29.7492,216.26,216.25,0.516782]
[1733783733790,29.7492,216.26,216.25,24.293666]
[1733783734143,0.75926807,216.37,216.25,24.168176]
[1733783734263,11.20780049,216.39,216.31,0.12549]
[1733783734471,0.75926807,216.38,216.33,23.776884]
[1733783734664,0.75926807,216.37,216.32,36.63143252]
[1733783734997,11.20780049,216.39,216.34,0.12549]
[1733783735165,0.75926807,216.38,216.34,0.12549]
[1733783735370,0.75926807,216.37,216.34,0.12549]
[1733783735569,11.20780049,216.39,216.34,0.12549]
[1733783735800,0.75926807,216.38,216.34,0.12549]
[1733783736090,0.75926807,216.37,216.33,23.776884]
[1733783736290,11.20780049,216.39,216.33,23.776884]
[1733783736476,11.20780049,216.39,216.26,48.19153252]
[1733783736477,0.75926807,216.38,216.31,23.776884]
[1733783736676,0.75926807,216.38,216.28,36.63143252]
[1733783736677,37.39070059,216.38,216.28,36.63143252]
[1733783736873,36.63143252,216.34,216.25,0.265802]
[1733783737073,0.75926807,216.33,216.26,36.75692252]
[1733783737804,0.75926807,216.33,216.25,0.265802]
[1733783738006,0.75926807,216.33,216.25,36.89723452]
[1733783738387,0.75926807,216.33,216.26,0.12549]
[1733783738589,36.63143252,216.28,216.25,0.265802]
[1733783738778,36.63143252,216.26,216.25,0.265802]
[1733783739598,73.26286504,216.26,216.25,0.265802]
[1733783739800,74.02213311,216.26,216.25,0.265802]
[1733783739989,84.02213311,216.26,216.25,0.265802]
[1733783740581,20.0,216.2,215.99,0.7148684]
[1733783740804,10.0,216.29,216.14,36.63143252]
[1733783740805,20.0,216.29,216.14,36.63143252]
[1733783741111,36.63143252,216.21,216.12,36.63143252]
[1733783741313,36.63143252,216.21,216.01,33.147]
[1733783741314,36.63143252,216.17,216.03,10.0]
[1733783741491,0.75926807,216.16,216.08,36.63143252]
[1733783742006,36.63143252,216.19,216.1,36.63143252]
[1733783742007,0.75926807,216.18,216.1,36.63143252]
[1733783742509,0.75926807,216.18,216.08,36.63143252]
[1733783742710,11.1559,216.28,216.08,36.63143252]
[1733783742711,36.63143252,216.3,216.18,0.12549]
[1733783742916,0.63386807,216.29,216.2,36.63143252]
[1733783743322,36.63143252,216.26,216.16,36.63143252]
[1733783743497,36.63143252,216.23,216.13,36.63143252]
[1733783743813,36.63143252,216.21,216.11,36.63143252]
[1733783743978,0.63386807,216.2,216.14,36.63143252]
[1733783744291,0.63386807,216.2,216.15,0.12549]
[1733783744613,0.63386807,216.2,216.12,36.63143252]
[1733783744816,36.63143252,216.17,215.98,33.826]
[1733783745111,36.63143252,216.13,216.03,36.63143252]
[1733783745293,30.0,216.2,215.98,23.826]
[1733783745294,36.63143252,216.11,216.01,36.63143252]
[1733783745501,0.63386807,216.1,216.01,36.63143252]
[1733783745685,0.63386807,216.1,216.0,0.12549]
[1733783745885,36.63143252,216.11,216.01,36.63143252]
[1733783746086,0.63386807,216.1,216.05,36.63143252]
[1733783746301,0.63386807,216.14,216.05,36.63143252]
[1733783746523,36.63143252,216.13,216.03,36.63143252]
[1733783746810,0.63386807,216.12,216.04,0.12549]
[1733783747020,0.63386807,216.12,215.99,0.7148684]
[1733783747021,36.63143252,216.11,216.01,36.63143252]
[1733783747189,0.63386807,216.1,216.01,36.63143252]
[1733783747888,0.63386807,216.1,216.06,0.12549]
[1733783748116,0.63386807,216.14,216.05,36.63143252]
[1733783748289,0.63386807,216.14,216.04,23.776884]
[1733783748290,20.0,216.1,216.04,23.776884]
[1733783748497,37.26530059,216.09,216.0,36.63143252]
[1733783748713,0.63386807,216.09,216.0,36.63143252]
[1733783749017,0.63386807,216.09,216.01,0.12549]
[1733783749320,0.63386807,216.09,216.0,36.63143252]
[1733783749692,0.63386807,216.09,216.01,23.776884]
[1733783750213,0.63386807,216.09,216.05,23.776884]
[1733783750515,0.63386807,216.14,216.05,23.776884]
[1733783751095,36.63143252,216.13,216.03,23.776884]
[1733783751296,36.75692252,216.11,216.02,36.63143252]
[1733783751507,20.0,216.08,216.02,36.63143252]
[1733783751699,0.63386807,216.1,215.99,312.7148684]
[1733783751700,0.63386807,216.07,215.99,312.7148684]
[1733783751904,0.63386807,216.09,216.03,36.63143252]
[1733783752493,0.63386807,216.12,216.04,23.776884]
[1733783753130,0.63386807,216.2,216.11,60.40831652]
[1733783753423,36.63143252,216.25,216.16,23.776884]
[1733783753633,0.63386807,216.24,216.16,23.776884]
[1733783754006,0.63386807,216.24,216.17,36.63143252]
[1733783754196,0.63386807,216.24,216.18,23.776884]
[1733783754398,0.63386807,216.24,216.16,23.776884]
[1733783754722,0.63386807,216.24,216.14,23.776884]
[1733783754723,0.12549,216.22,216.14,23.776884]
[1733783754890,36.63143252,216.21,216.13,36.63143252]
[1733783755091,0.63386807,216.2,216.12,23.776884]
[1733783755290,36.63143252,216.16,216.03,10.0]
[1733783755525,0.63386807,216.15,216.06,36.63143252]
[1733783755901,0.63386807,216.15,215.93,36.63143252]
[1733783755902,20.0,216.04,215.88,10.0]
[1733783756244,0.63386807,216.03,215.92,10.0]
[1733783756402,0.63386807,216.03,215.85,1.89112839]
[1733783756403,20.0,216.03,215.94,36.63143252]
[1733783756593,20.0,216.03,215.92,36.63143252]
[1733783756594,0.63386807,216.02,215.92,36.63143252]
[1733783757028,81.4879,216.59,216.24,21.9004]
[1733783757234,81.4879,216.59,216.08,24.8157082]
[1733783757235,36.63143252,216.31,216.21,10.0]
[1733783757397,36.63143252,216.48,216.15,10.0]
[1733783757398,36.63143252,216.37,216.15,10.0]
[1733783757728,11.4879,216.39,216.15,10.0]
[1733783757934,11.4879,216.39,216.14,10.0]
[1733783758098,11.4879,216.39,216.14,20.0]
[1733783758298,11.4879,216.39,216.14,10.0]
[1733783758609,23.776884,216.38,216.12,10.0]
[1733783758925,36.63143252,216.17,216.12,10.0]
[1733783759131,36.63143252,216.2,216.09,10.0]
[1733783759301,20.0,216.15,216.1,10.0]
[1733783759911,0.12549,216.14,216.1,10.0]
[1733783760230,20.0,216.17,216.11,10.0]
[1733783760631,36.63143252,216.26,216.01,7.2587]
[1733783760632,2.3108,216.37,216.19,10.0]
[1733783760814,36.63143252,216.4,216.28,36.63143252]
[1733783761017,36.63143252,216.44,216.35,10.0]
[1733783761323,36.63143252,216.46,216.37,10.0]
[1733783761527,7.0337,216.52,216.36,36.63143252]
[1733783761528,0.12549,216.45,216.36,36.63143252]
[1733783761749,0.12549,216.45,216.39,10.0]
[1733783761945,36.63143252,216.48,216.36,46.63143252]
[1733783761946,0.12549,216.47,216.36,46.63143252]
[1733783762255,36.63143252,216.48,216.23,10.0]
[1733783762256,36.63143252,216.4,216.29,10.0]
[1733783762544,0.12549,216.39,216.28,36.63143252]
[1733783762711,0.12549,216.35,216.27,10.0]
[1733783762915,0.12549,216.32,216.24,56.63143252]
[1733783763134,36.63143252,216.48,216.01,230.90154394]
[1733783763135,20.0,216.35,216.26,56.63143252]
[1733783763335,20.0,216.35,216.3,10.0]
[1733783763540,36.63143252,216.4,216.33,10.0]
[1733783763752,0.12549,216.39,216.35,10.0]
[1733783763951,0.25098,216.39,216.31,10.0]
[1733783764206,0.25098,216.39,216.32,10.0]
[1733783764325,36.63143252,216.4,216.31,10.0]
[1733783764326,36.63143252,216.4,216.36,10.0]
[1733783764525,36.63143252,216.4,216.34,10.0]
[1733783764928,36.63143252,216.4,216.33,10.0]
[1733783765137,36.63143252,216.4,216.36,10.0]
[1733783765420,36.63143252,216.42,216.35,10.0]
[1733783765644,36.63143252,216.44,216.38,10.0]
[1733783766026,0.12549,216.43,216.37,10.0]
[1733783766332,36.63143252,216.4,216.34,10.0]
[1733783766539,0.12549,216.39,216.34,10.0]
[1733783766739,20.12549,216.39,216.34,10.0]
[1733783767818,36.63143252,216.44,216.4,10.0]
[1733783768733,0.12549,216.41,216.35,10.0]
[1733783769056,20.0,216.38,216.37,10.0]
[1733783769255,20.0,216.37,216.33,10.0]
[1733783769544,20.0,216.37,216.35,10.0]
[1733783769759,36.63143252,216.42,216.39,10.0]
[1733783769936,20.0,216.39,216.38,10.0]
[1733783770131,20.0,216.39,216.35,10.0]
[1733783770132,1.1544,216.56,216.45,10.0]
[1733783770357,15.07181127,216.63,216.5,10.0]
[1733783770358,36.63143252,216.54,216.5,10.0]
[1733783770566,36.63143252,216.54,216.48,20.0]
[1733783771157,36.63143252,216.56,216.53,10.0]
[1733783771530,0.12549,216.55,216.48,10.0]
[1733783771743,36.63143252,216.5,216.45,10.0]
[1733783771930,36.63143252,216.46,216.39,20.0]
[1733783772236,0.12549,216.41,216.35,10.0]
[1733783772560,0.12549,216.32,216.27,10.0]
[1733783772767,20.0,216.33,216.32,10.0]
[1733783773461,20.0,216.33,216.31,10.0]
[1733783774757,36.63143252,216.42,216.37,10.0]
[1733783774956,36.63143252,216.44,216.39,10.0]
[1733783775155,39.29823912,216.48,216.43,10.0]
[1733783775354,37.78623252,216.48,216.43,10.0]
[1733783775558,36.63143252,216.52,216.46,10.0]
[1733783775742,36.63143252,216.52,216.46,20.0]
[1733783775939,0.12549,216.51,216.46,10.0]
[1733783776146,36.63143252,216.52,216.48,10.0]
[1733783776347,36.63143252,216.52,216.45,10.0]
[1733783776541,36.63143252,216.52,216.42,36.63143252]
[1733783776542,36.63143252,216.52,216.49,10.0]
[1733783776865,36.63143252,216.52,216.45,10.0]
[1733783777076,36.63143252,216.47,216.36,16.3324]
[1733783777270,0.12549,216.42,216.37,10.0]
[1733783777562,0.12549,216.42,216.26,36.63143252]
[1733783777563,0.12549,216.37,216.29,10.0]
[1733783777877,57.78693252,216.35,216.29,16.3324]
[1733783778060,20.0,216.35,216.32,10.0]
[1733783778241,20.0,216.35,216.31,6.3324]
[1733783778443,20.0,216.34,216.33,10.0]
[1733783778658,36.63143252,216.41,216.33,14.3324]
[1733783778976,20.0,216.38,216.37,14.3324]
[1733783779267,20.0,216.38,216.37,6.3324]
[1733783779579,20.0,216.38,216.31,36.63143252]
[1733783779580,20.0,216.38,216.33,6.3324]
[1733783779777,20.0,216.38,216.37,14.3324]
[1733783780071,36.63143252,216.47,216.42,8.0]
[1733783780246,0.12549,216.46,216.41,8.0]
[1733783780567,36.63143252,216.47,216.43,8.0]
[1733783780742,36.63143252,216.49,216.43,8.0]
[1733783781066,23.84660078,216.69,216.39,36.63143252]
[1733783781067,36.63143252,216.6,216.53,8.0]
[1733783781277,36.63143252,216.6,216.55,8.0]
[1733783781771,36.63143252,216.62,216.55,6.3324]
[1733783781945,36.63143252,216.62,216.56,8.0]
[1733783782146,36.63143252,216.62,216.59,8.0]
[1733783782358,36.63143252,216.62,216.58,6.3324]
[1733783782760,36.63143252,216.6,216.51,8.0]
[1733783783040,36.63143252,216.6,216.56,8.0]
[1733783783241,36.63143252,216.6,216.54,6.3324]
[1733783783453,36.63143252,216.6,216.52,8.0]
[1733783783454,0.12549,216.59,216.52,14.3324]
[1733783783641,0.12549,216.59,216.54,6.3324]
[1733783783842,0.12549,216.59,216.56,8.0]
[1733783784065,0.25098,216.59,216.56,8.0]
[1733783784270,0.12549,216.59,216.57,8.0]
[1733783784444,36.63143252,216.6,216.57,8.0]
[1733783784445,0.12549,216.6,216.57,8.0]
[1733783784643,0.25098,216.6,216.57,8.0]
[1733783785069,0.12549,216.6,216.56,6.3324]
[1733783785269,0.12549,216.6,216.57,8.0]
[1733783785472,1.40518,216.59,216.51,14.3324]
[1733783785647,20.0,216.55,216.51,6.3324]
[1733783785850,20.0,216.55,216.54,8.0]
[1733783786043,20.0,216.55,216.51,6.3324]
[1733783786445,20.0,216.55,216.54,8.0]
[1733783786647,36.63143252,216.62,216.58,8.0]
[1733783786862,1.154,216.63,216.6,8.0]
[1733783787065,1.154,216.63,216.59,8.0]
[1733783787250,36.63143252,216.62,216.55,14.3324]
[1733783787450,0.12549,216.6,216.55,14.3324]
[1733783787845,20.0,216.59,216.58,8.0]
[1733783789258,20.0,216.59,216.55,6.3324]
[1733783789475,20.12549,216.61,216.59,8.0]
[1733783790354,20.0,216.61,216.6,8.0]
[1733783790555,1.1541,216.62,216.6,8.0]
[1733783791457,1.1541,216.62,216.52,8.0]
[1733783791458,0.25098,216.59,216.52,8.0]
[1733783791663,0.12549,216.52,216.45,5.687]
[1733783791851,5.771,216.6,216.54,5.687]
[1733783792061,1.1542,216.6,216.56,5.687]
[1733783792268,37.78563252,216.6,216.49,5.687]
[1733783792470,0.12549,216.56,216.47,5.687]
[1733783792849,40.29903252,216.57,216.45,5.687]
[1733783792850,36.63143252,216.53,216.45,5.687]
[1733783793057,0.12549,216.46,216.37,5.687]
[1733783793251,20.0,216.4,216.37,5.687]
[1733783793450,20.0,216.4,216.24,3.1018]
[1733783793451,0.25098,216.35,216.24,3.1018]
[1733783793678,0.25098,216.35,216.2,3.1018]
[1733783793679,0.25098,216.31,216.2,3.1018]
[1733783793897,0.25098,216.31,216.15,3.1018]
[1733783793898,0.25098,216.26,216.15,3.1018]
[1733783794210,0.25098,216.26,216.1,0.5409772]
[1733783794211,0.25098,216.22,216.13,3.1018]
[1733783794381,30.0,216.2,216.12,3.1018]
[1733783794770,0.12549,216.16,216.12,3.1018]
[1733783794974,0.12549,216.19,216.1,0.5409772]
[1733783794975,20.0,216.11,216.1,0.5409772]
[1733783795167,0.25098,216.1,215.98,46.06563252]
[1733783795363,30.0,216.02,216.01,3.1018]
[1733783795579,30.0,216.02,215.96,36.63143252]
[1733783795580,20.0,215.99,215.97,3.1018]
[1733783795887,20.0,215.99,215.95,3.1018]
[1733783796264,20.0,215.99,215.94,39.73323252]
[1733783796466,20.0,215.99,215.97,3.1018]
[1733783796665,20.0,215.99,215.94,39.73323252]
[1733783796871,20.0,215.99,215.96,3.1018]
[1733783797065,20.0,215.99,215.94,3.1018]
[1733783797266,20.0,215.99,215.93,3.1018]
[1733783797675,20.0,215.99,215.97,3.1018]
[1733783797871,30.0,216.02,216.0,3.1018]
[1733783798086,30.0,216.02,215.87,22.158]
[1733783798087,31.1573,216.02,215.87,6.3324]
[1733783798274,36.63143252,215.97,215.89,6.3324]
[1733783798570,31.1573,216.02,215.87,36.63143252]
[1733783798571,31.1573,216.02,215.9,6.3324]
[1733783798771,31.1573,216.02,215.76,10.69486562]
[1733783798772,36.63143252,215.99,215.88,43.53024352]
[1733783799008,20.0,215.92,215.88,0.566411]
[1733783799191,3.6676,215.99,215.88,0.566411]
[1733783799192,56.75692252,215.89,215.88,0.566411]
[1733783799571,56.63143252,215.89,215.88,0.566411]
[1733783800421,3.6676,216.05,215.88,0.566411]
[1733783800583,30.0,216.02,215.96,6.3324]
[1733783800882,30.0,216.02,215.98,42.96383252]
[1733783801083,36.63143252,216.1,216.02,6.3324]
[1733783801293,36.63143252,216.1,216.03,6.3324]
[1733783801493,36.63143252,216.1,216.02,6.3324]
[1733783801679,36.63143252,216.05,215.97,6.3324]
[1733783801873,36.63143252,216.03,215.93,6.3324]
[1733783802294,36.63143252,215.97,215.91,6.3324]
[1733783802603,36.63143252,215.97,215.88,0.566411]
[1733783802604,0.12549,215.89,215.88,0.566411]
[1733783802799,36.88241252,215.89,215.88,0.566411]
[1733783803682,36.75692252,215.89,215.88,0.566411]
[1733783804070,36.63143252,215.89,215.88,0.566411]
[1733783804274,20.0,215.89,215.88,6.898811]
[1733783804481,36.63143252,215.95,215.9,6.3324]
[1733783804798,36.63143252,215.95,215.88,6.898811]
[1733783805101,36.63143252,215.93,215.88,6.898811]
[1733783805597,3.79309,216.0,215.91,6.3324]
[1733783805806,3.79309,216.0,215.88,0.566411]
[1733783805807,36.63143252,215.92,215.88,0.566411]
[1733783806006,36.63143252,215.92,215.91,6.3324]
[1733783806171,20.0,215.91,215.89,6.3324]
[1733783806376,20.0,215.91,215.88,0.566411]
[1733783806684,20.0,215.89,215.88,0.566411]
[1733783806875,20.12549,215.89,215.88,0.566411]
[1733783807300,20.12549,215.89,215.63,2.8010233]
[1733783807301,41.2268407,215.86,215.63,2.8010233]
[1733783807503,41.2268407,215.86,215.45,0.566411]
[1733783807504,20.0,215.61,215.45,0.566411]
[1733783807682,0.12549,215.51,215.45,0.566411]
[1733783807881,20.0,215.47,215.45,0.566411]
[1733783808117,56.75692252,215.46,215.45,1.1e-05]
[1733783808323,56.75692252,215.46,215.31,2.8010233]
[1733783808324,0.12549,215.45,215.31,2.8010233]
[1733783808525,36.63143252,215.35,215.34,2.8010233]
[1733783808881,20.0,215.35,215.34,2.8010233]
[1733783809082,20.0,215.46,215.34,2.8010233]
[1733783809408,0.12549,215.45,215.31,2.8010233]
[1733783809589,20.0,215.32,215.29,2.8010233]
[1733783809913,36.63143252,215.31,215.29,2.8010233]
[1733783810281,20.0,215.28,215.24,3.1904966]
[1733783810618,36.63143252,215.25,215.24,3.1904966]
[1733783810911,36.63143252,215.25,215.24,0.3894733]
[1733783811291,36.88241252,215.25,215.24,0.3894733]
[1733783811614,36.63143252,215.25,215.24,0.3894733]
[1733783811915,36.88241252,215.25,215.24,0.3894733]
[1733783812275,38.04381252,215.25,215.24,7.33e-05]
[1733783812686,38.04381252,215.25,215.11,2.8010233]
[1733783812687,0.12549,215.21,215.11,2.8010233]
[1733783812906,20.0,215.13,215.12,2.8010233]
[1733783813308,20.0,215.11,215.03,2.8010233]
[1733783813510,20.0,215.11,215.1,2.8010233]
[1733783813715,20.0,215.09,215.08,2.8010233]
[1733783814084,36.63143252,215.15,215.1,2.8010233]
[1733783814314,36.63143252,215.22,215.19,2.8010233]
[1733783814479,2.3215,215.37,215.22,2.8010233]
[1733783814480,1.51438841,215.28,215.22,2.8010233]
[1733783814687,36.63143252,215.28,215.25,2.8010233]
[1733783814881,36.63143252,215.38,215.15,2.8010233]